[Event "*** Titled Tuesday 3|2 Blitz"]
[Site "Chess.com"]
[Date "2015.11.03"]
[Round "1"]
[White "wanyaland"]
[Black "Keranke"]
[Result "0-1"]
[WhiteElo "2251"]
[BlackElo "2579"]
[TimeControl "180+2"]
[EndTime "11:08:22 PST"]
[Termination "Keranke won on time"]

1. d4 {[%clk 0:02:56.1]} 1... g6 {[%clk 0:03:00.4]} 2. c4 {[%clk 0:02:57.9]}
2... Bg7 {[%clk 0:03:01.7]} 3. Nc3 {[%clk 0:02:59.3]} 3... d6 {[%clk 0:02:58.1]}
4. e4 {[%clk 0:02:59.3]} 4... Nf6 {[%clk 0:02:58.6]} 5. Nf3 {[%clk 0:02:59.8]}
5... O-O {[%clk 0:02:59.5]} 6. Be2 {[%clk 0:02:58.8]} 6... Bg4 {[%clk
0:03:00.4]} 7. h3 {[%clk 0:02:57.7]} 7... Bxf3 {[%clk 0:03:00.9]} 8. Bxf3 {[%clk
0:02:59.3]} 8... Nc6 {[%clk 0:03:00.3]} 9. d5 {[%clk 0:03:00]} 9... Ne5 {[%clk
0:02:55.6]} 10. Be2 {[%clk 0:03:01]} 10... c6 {[%clk 0:02:55.9]} 11. f4 {[%clk
0:02:59.8]} 11... Ned7 {[%clk 0:02:56.8]} 12. dxc6 {[%clk 0:03:00.1]} 12... bxc6
{[%clk 0:02:57.7]} 13. O-O {[%clk 0:03:00.8]} 13... Rb8 {[%clk 0:02:55.5]} 14.
Bf3 {[%clk 0:03:00.1]} 14... Qa5 {[%clk 0:02:48.8]} 15. Kh1 {[%clk 0:02:59.7]}
15... Nc5 {[%clk 0:02:29.8]} 16. e5 {[%clk 0:02:44.9]} 16... dxe5 {[%clk
0:02:31.7]} 17. fxe5 {[%clk 0:02:45.6]} 17... Nfd7 {[%clk 0:02:33.3]} 18. Bxc6
{[%clk 0:02:41.4]} 18... Nxe5 {[%clk 0:02:33.8]} 19. Bf3 {[%clk 0:02:30.8]}
19... Nxc4 {[%clk 0:02:32.5]} 20. Qe2 {[%clk 0:02:31.7]} 20... Nxb2 {[%clk
0:02:26.3]} 21. Nd5 {[%clk 0:02:19.9]} 21... Nbd3 {[%clk 0:02:11.7]} 22. Bd2
{[%clk 0:02:13.1]} 22... Qa6 {[%clk 0:01:55]} 23. Nxe7+ {[%clk 0:02:13.4]} 23...
Kh8 {[%clk 0:01:56.2]} 24. Rab1 {[%clk 0:02:10.6]} 24... Rbe8 {[%clk 0:01:57]}
25. Bg5 {[%clk 0:01:40.7]} 25... Ne6 {[%clk 0:01:48.5]} 26. Bh4 {[%clk 0:01:29]}
26... g5 {[%clk 0:01:27.5]} 27. Be4 {[%clk 0:01:28.3]} 27... Ndc5 {[%clk
0:01:07.5]} 28. Qxa6 {[%clk 0:01:06.7]} 28... Nxa6 {[%clk 0:01:09.4]} 29. Nc6
{[%clk 0:00:43.2]} 29... gxh4 {[%clk 0:01:07.9]} 30. Nxa7 {[%clk 0:00:43.9]}
30... Nec5 {[%clk 0:01:05]} 31. Bf3 {[%clk 0:00:42.7]} 31... Re3 {[%clk
0:00:59.1]} 32. Nc6 {[%clk 0:00:31.3]} 32... Ne4 {[%clk 0:01:00.4]} 33. Kh2
{[%clk 0:00:22]} 33... Nd2 {[%clk 0:00:58]} 34. Rf2 {[%clk 0:00:18.2]} 34...
Nxb1 {[%clk 0:00:58.8]} 0-1

[Event "*** Titled Tuesday 3|2 Blitz"]
[Site "Chess.com"]
[Date "2015.11.03"]
[Round "1"]
[White "igorkovalenko"]
[Black "ZEN-22"]
[Result "1-0"]
[WhiteElo "2493"]
[BlackElo "2177"]
[TimeControl "180+2"]
[EndTime "11:08:25 PST"]
[Termination "igorkovalenko won by resignation"]

1. d4 {[%clk 0:02:58.8]} 1... d6 {[%clk 0:02:58.5]} 2. Nf3 {[%clk 0:03:00.3]}
2... Nd7 {[%clk 0:02:57.8]} 3. e4 {[%clk 0:03:01.3]} 3... e5 {[%clk 0:02:59.3]}
4. Nc3 {[%clk 0:03:02.9]} 4... Ngf6 {[%clk 0:03:00.5]} 5. g3 {[%clk 0:03:04]}
5... exd4 {[%clk 0:03:00.8]} 6. Nxd4 {[%clk 0:03:04.9]} 6... h5 {[%clk
0:03:02.3]} 7. Bg5 {[%clk 0:03:04.9]} 7... g6 {[%clk 0:03:00.1]} 8. Bg2 {[%clk
0:03:04.6]} 8... c6 {[%clk 0:03:01.5]} 9. O-O {[%clk 0:03:05.2]} 9... Be7 {[%clk
0:03:01.6]} 10. Re1 {[%clk 0:03:06]} 10... Ne5 {[%clk 0:03:02.3]} 11. h3 {[%clk
0:03:04.2]} 11... Qb6 {[%clk 0:03:00.2]} 12. Nb3 {[%clk 0:02:55.3]} 12... h4
{[%clk 0:02:59.8]} 13. Be3 {[%clk 0:02:55.8]} 13... Qc7 {[%clk 0:02:59.3]} 14.
g4 {[%clk 0:02:51.4]} 14... Nc4 {[%clk 0:02:53]} 15. Bc1 {[%clk 0:02:51.3]}
15... a5 {[%clk 0:02:51]} 16. a4 {[%clk 0:02:51.8]} 16... Nh7 {[%clk 0:02:44.8]}
17. f4 {[%clk 0:02:49.9]} 17... Bf6 {[%clk 0:02:44.1]} 18. Qd3 {[%clk
0:02:50.6]} 18... Nb6 {[%clk 0:02:34.9]} 19. Be3 {[%clk 0:02:49.3]} 19... O-O
{[%clk 0:02:34.6]} 20. Rad1 {[%clk 0:02:48.2]} 20... Rd8 {[%clk 0:02:34]} 21.
Nd4 {[%clk 0:02:46.4]} 21... Nf8 {[%clk 0:02:27.8]} 22. b3 {[%clk 0:02:47.4]}
22... Ne6 {[%clk 0:02:28.4]} 23. Nce2 {[%clk 0:02:19.1]} 23... Nc5 {[%clk
0:02:28.4]} 24. Qd2 {[%clk 0:02:19]} 24... Re8 {[%clk 0:02:30.1]} 25. Nc3 {[%clk
0:02:19.3]} 25... Bd7 {[%clk 0:02:29.6]} 26. Bf2 {[%clk 0:02:20.3]} 26... Rad8
{[%clk 0:02:29.8]} 27. g5 {[%clk 0:02:18.1]} 27... Bg7 {[%clk 0:02:29.8]} 28.
Bxh4 {[%clk 0:02:18.9]} 28... d5 {[%clk 0:02:27.4]} 29. e5 {[%clk 0:02:14.8]}
29... Ne6 {[%clk 0:02:28.2]} 30. Bf2 {[%clk 0:02:14.4]} 30... Nxd4 {[%clk
0:02:28.5]} 31. Qxd4 {[%clk 0:02:15.1]} 31... Nc8 {[%clk 0:02:28.6]} 32. h4
{[%clk 0:02:11.1]} 32... Bg4 {[%clk 0:02:28.6]} 33. Rc1 {[%clk 0:02:08.5]} 33...
b6 {[%clk 0:02:29.9]} 34. Qd3 {[%clk 0:02:06.3]} 34... Bf5 {[%clk 0:02:29.8]}
35. Qg3 {[%clk 0:02:05.9]} 35... Ne7 {[%clk 0:02:26.1]} 36. Red1 {[%clk
0:02:01.5]} 36... Qc8 {[%clk 0:02:22]} 37. Bf3 {[%clk 0:02:01.3]} 37... Qc7
{[%clk 0:02:16]} 38. Rd2 {[%clk 0:01:53.3]} 38... Be6 {[%clk 0:02:16.8]} 39. h5
{[%clk 0:01:52.2]} 39... Nf5 {[%clk 0:02:17.2]} 40. Qh2 {[%clk 0:01:52.9]} 40...
b5 {[%clk 0:02:12.5]} 41. h6 {[%clk 0:01:49.4]} 41... Bh8 {[%clk 0:02:11.6]} 42.
h7+ {[%clk 0:01:45.7]} 42... Kf8 {[%clk 0:02:12.1]} 43. axb5 {[%clk 0:01:46]}
43... cxb5 {[%clk 0:02:12]} 44. Nxb5 {[%clk 0:01:46.9]} 44... Qb8 {[%clk
0:02:02.9]} 45. Bc5+ {[%clk 0:01:41.7]} 45... Re7 {[%clk 0:01:56.8]} 46. Nd4
{[%clk 0:01:43]} 46... Nxd4 {[%clk 0:01:56.1]} 47. Rxd4 {[%clk 0:01:43.4]} 47...
Ke8 {[%clk 0:01:57]} 48. Bxe7 {[%clk 0:01:43.3]} 48... Kxe7 {[%clk 0:01:58.6]}
49. Qd2 {[%clk 0:01:41.5]} 49... Qb6 {[%clk 0:01:59]} 50. Kg2 {[%clk 0:01:42.1]}
50... Bg7 {[%clk 0:02:00.1]} 51. Ra4 {[%clk 0:01:39.5]} 51... Rh8 {[%clk
0:01:58.5]} 52. Qxa5 {[%clk 0:01:39.9]} 52... Qxa5 {[%clk 0:01:59.7]} 53. Rxa5
{[%clk 0:01:40.7]} 53... Kd7 {[%clk 0:02:00.3]} 54. Ra7+ {[%clk 0:01:41.2]}
54... Kc6 {[%clk 0:02:01.2]} 55. Ra6+ {[%clk 0:01:42.3]} 55... Kb5 {[%clk
0:02:02]} 56. Be2+ {[%clk 0:01:42.9]} 56... Kc5 {[%clk 0:02:01.8]} 57. c3 {[%clk
0:01:44]} 57... d4 {[%clk 0:02:02.4]} 58. b4+ {[%clk 0:01:44.6]} 58... Kd5
{[%clk 0:02:03.5]} 59. Bf3+ {[%clk 0:01:45.4]} 59... Kc4 {[%clk 0:02:04.8]} 60.
cxd4+ {[%clk 0:01:43.1]} 60... Kxd4 {[%clk 0:02:04.4]} 61. b5 {[%clk 0:01:44.1]}
61... Rxh7 {[%clk 0:02:02.6]} 62. Ra4+ {[%clk 0:01:44.5]} 62... Ke3 {[%clk
0:02:03.1]} 63. Ra3+ {[%clk 0:01:45.3]} 63... Kxf4 {[%clk 0:02:04]} 64. b6
{[%clk 0:01:41.3]} 64... Bxe5 {[%clk 0:02:04.7]} 65. Ra4+ {[%clk 0:01:38.2]}
65... Kxg5 {[%clk 0:02:04.9]} 66. Rc5 {[%clk 0:01:36.8]} 66... Kf6 {[%clk
0:02:05.2]} 67. Rxe5 {[%clk 0:01:37.5]} 67... Kxe5 {[%clk 0:02:02.2]} 68. b7
{[%clk 0:01:39.1]} 68... Rh8 {[%clk 0:01:51.7]} 69. Ra8 {[%clk 0:01:40.3]} 69...
Bh3+ {[%clk 0:01:46.9]} 70. Kg3 {[%clk 0:01:40.7]} 70... Rh7 {[%clk 0:01:44.4]}
71. b8=Q+ {[%clk 0:01:40.7]} 71... Kf5 {[%clk 0:01:46.1]} 72. Qf4+ {[%clk
0:01:40.7]} 72... Ke6 {[%clk 0:01:47.4]} 73. Ra6+ {[%clk 0:01:41]} 73... Ke7
{[%clk 0:01:48.9]} 74. Qf6+ {[%clk 0:01:41.1]} 74... Kd7 {[%clk 0:01:48.4]} 75.
Qd6+ {[%clk 0:01:42]} 75... Ke8 {[%clk 0:01:47.7]} 76. Ra8+ {[%clk 0:01:42.2]}
1-0

[Event "*** Titled Tuesday 3|2 Blitz"]
[Site "Chess.com"]
[Date "2015.11.03"]
[Round "1"]
[White "saraswathii"]
[Black "stepanosinovsky"]
[Result "1-0"]
[WhiteElo "1940"]
[BlackElo "2291"]
[TimeControl "180+2"]
[EndTime "11:08:29 PST"]
[Termination "saraswathii won by resignation"]

1. e4 {[%clk 0:02:45.9]} 1... e5 {[%clk 0:02:46.7]} 2. d3 {[%clk 0:02:46.2]}
2... Nc6 {[%clk 0:02:47.4]} 3. Nf3 {[%clk 0:02:45.3]} 3... Bc5 {[%clk
0:02:47.8]} 4. g3 {[%clk 0:02:45.1]} 4... h5 {[%clk 0:02:47.7]} 5. h4 {[%clk
0:02:43.9]} 5... Nf6 {[%clk 0:02:45.3]} 6. Bg2 {[%clk 0:02:44.2]} 6... Ng4
{[%clk 0:02:46.2]} 7. O-O {[%clk 0:02:41.6]} 7... d6 {[%clk 0:02:31]} 8. c3
{[%clk 0:02:40.3]} 8... Bb6 {[%clk 0:02:24.2]} 9. d4 {[%clk 0:02:40.2]} 9... Qf6
{[%clk 0:02:19.5]} 10. Bg5 {[%clk 0:02:35.3]} 10... Qg6 {[%clk 0:02:20]} 11. Na3
{[%clk 0:02:22.7]} 11... f6 {[%clk 0:02:18.1]} 12. Bc1 {[%clk 0:02:19.2]} 12...
a6 {[%clk 0:01:35.7]} 13. Nc4 {[%clk 0:02:15.7]} 13... Ba7 {[%clk 0:01:36.4]}
14. Ne3 {[%clk 0:02:10.4]} 14... Ne7 {[%clk 0:01:33.2]} 15. Nxg4 {[%clk
0:02:04]} 15... hxg4 {[%clk 0:01:31.6]} 16. Nh2 {[%clk 0:02:04]} 16... Qh5
{[%clk 0:01:22.9]} 17. Be3 {[%clk 0:02:02.1]} 17... g5 {[%clk 0:01:20.6]} 18. f3
{[%clk 0:01:59.9]} 18... gxh4 {[%clk 0:01:15.7]} 19. fxg4 {[%clk 0:02:00.6]}
19... Qh7 {[%clk 0:01:12.5]} 20. Rxf6 {[%clk 0:01:56.2]} 20... hxg3 {[%clk
0:01:12.5]} 21. Nf1 {[%clk 0:01:56.4]} 21... Qg7 {[%clk 0:00:57.9]} 22. g5
{[%clk 0:01:50.9]} 22... Rh4 {[%clk 0:00:35.7]} 23. Nxg3 {[%clk 0:01:48.7]}
23... Bg4 {[%clk 0:00:36]} 24. Bf3 {[%clk 0:01:42.3]} 24... Bd7 {[%clk
0:00:22.1]} 25. Nh5 {[%clk 0:01:20]} 25... Qh8 {[%clk 0:00:17.2]} 26. Rh6 {[%clk
0:01:16.9]} 26... O-O-O {[%clk 0:00:09.8]} 27. Rxh8 {[%clk 0:01:16.1]} 27...
Rxh8 {[%clk 0:00:11.3]} 28. Nf6 {[%clk 0:01:11.6]} 28... Ng6 {[%clk 0:00:12.1]}
29. Nxd7 {[%clk 0:01:08.8]} 29... Kxd7 {[%clk 0:00:13]} 30. Bf2 {[%clk
0:01:03.3]} 30... Rf4 {[%clk 0:00:13.6]} 31. Bg3 {[%clk 0:00:56.8]} 31... exd4
{[%clk 0:00:14.8]} 32. Bg4+ {[%clk 0:00:43.6]} 32... Kd8 {[%clk 0:00:14.3]} 33.
Bxf4 {[%clk 0:00:43.6]} 33... dxc3+ {[%clk 0:00:14.3]} 34. Kg2 {[%clk
0:00:42.1]} 34... Nxf4+ {[%clk 0:00:14.9]} 35. Kg3 {[%clk 0:00:42.8]} 35... cxb2
{[%clk 0:00:14.8]} 36. Rb1 {[%clk 0:00:41.6]} 36... Ng6 {[%clk 0:00:15.8]} 37.
Rxb2 {[%clk 0:00:42.1]} 37... Ne5 {[%clk 0:00:15.8]} 38. Bf5 {[%clk 0:00:38.7]}
38... Be3 {[%clk 0:00:16.2]} 39. Rxb7 {[%clk 0:00:37]} 39... Ke7 {[%clk
0:00:15.7]} 40. Rxc7+ {[%clk 0:00:37.6]} 40... Kf8 {[%clk 0:00:15.9]} 41. Qxd6+
{[%clk 0:00:37.9]} 1-0

[Event "*** Titled Tuesday 3|2 Blitz"]
[Site "Chess.com"]
[Date "2015.11.03"]
[Round "1"]
[White "manubibi"]
[Black "motivated_bishop"]
[Result "1-0"]
[WhiteElo "2441"]
[BlackElo "2126"]
[TimeControl "180+2"]
[EndTime "11:08:34 PST"]
[Termination "manubibi won by checkmate"]

1. e4 {[%clk 0:03:01.1]} 1... e5 {[%clk 0:03:00.8]} 2. Nf3 {[%clk 0:03:01.7]}
2... Nc6 {[%clk 0:03:02.1]} 3. Bb5 {[%clk 0:03:01.3]} 3... a6 {[%clk 0:03:03.5]}
4. Ba4 {[%clk 0:03:01.7]} 4... Nf6 {[%clk 0:03:03.2]} 5. O-O {[%clk 0:03:02.4]}
5... Be7 {[%clk 0:03:04.6]} 6. Re1 {[%clk 0:03:02.5]} 6... b5 {[%clk 0:03:05.8]}
7. Bb3 {[%clk 0:03:03.7]} 7... d6 {[%clk 0:03:07.7]} 8. c3 {[%clk 0:03:04.2]}
8... O-O {[%clk 0:03:09.4]} 9. h3 {[%clk 0:03:05.4]} 9... Nb8 {[%clk 0:03:11]}
10. d4 {[%clk 0:03:06.2]} 10... Nbd7 {[%clk 0:03:12.7]} 11. Nbd2 {[%clk
0:03:07]} 11... Bb7 {[%clk 0:03:14.4]} 12. a4 {[%clk 0:03:03.1]} 12... c5 {[%clk
0:03:10.4]} 13. d5 {[%clk 0:03:00.7]} 13... c4 {[%clk 0:03:11.8]} 14. Bc2 {[%clk
0:03:01.7]} 14... Nc5 {[%clk 0:03:13.2]} 15. Nf1 {[%clk 0:02:57.5]} 15... Re8
{[%clk 0:03:14.6]} 16. Ng3 {[%clk 0:02:56.4]} 16... g6 {[%clk 0:03:16]} 17. Ra3
{[%clk 0:02:48.4]} 17... Nfd7 {[%clk 0:03:09.6]} 18. Be3 {[%clk 0:02:46.2]}
18... Qc7 {[%clk 0:03:09.7]} 19. h4 {[%clk 0:02:20.4]} 19... Nb6 {[%clk
0:02:48.9]} 20. axb5 {[%clk 0:02:14.4]} 20... axb5 {[%clk 0:02:49.9]} 21. Rxa8
{[%clk 0:02:15]} 21... Rxa8 {[%clk 0:02:51.8]} 22. Ng5 {[%clk 0:02:11.8]} 22...
Nbd7 {[%clk 0:02:35.5]} 23. h5 {[%clk 0:02:09.5]} 23... Qd8 {[%clk 0:02:35.5]}
24. Qg4 {[%clk 0:01:57.8]} 24... Nd3 {[%clk 0:02:03.5]} 25. Bxd3 {[%clk
0:01:41.5]} 25... cxd3 {[%clk 0:02:05.4]} 26. hxg6 {[%clk 0:01:39.3]} 26... hxg6
{[%clk 0:02:01.9]} 27. Nxf7 {[%clk 0:01:11]} 27... Kxf7 {[%clk 0:01:50.6]} 28.
Qe6+ {[%clk 0:01:10.4]} 28... Kg7 {[%clk 0:01:48.5]} 29. Bh6+ {[%clk 0:00:55.7]}
29... Kxh6 {[%clk 0:01:22.7]} 30. Nf5+ {[%clk 0:00:55.9]} 30... Kg5 {[%clk
0:01:20.6]} 31. Nxe7 {[%clk 0:00:44.1]} 31... Nf8 {[%clk 0:01:21.6]} 32. Qf7
{[%clk 0:00:34.5]} 32... Qe8 {[%clk 0:01:07.1]} 33. Qg7 {[%clk 0:00:34.9]} 33...
d2 {[%clk 0:00:55.7]} 34. Rd1 {[%clk 0:00:35.7]} 34... Ra7 {[%clk 0:00:57.1]}
35. Rxd2 {[%clk 0:00:35.3]} 35... Bxd5 {[%clk 0:00:55]} 36. f4+ {[%clk
0:00:34.2]} 36... Kg4 {[%clk 0:00:25.7]} 37. Qh6 {[%clk 0:00:35]} 37... exf4
{[%clk 0:00:10.1]} 38. Rxd5 {[%clk 0:00:29.4]} 38... Ra1+ {[%clk 0:00:07.9]} 39.
Kh2 {[%clk 0:00:29.7]} 39... f3 {[%clk 0:00:06]} 40. Qg5# {[%clk 0:00:28.4]} 1-0

[Event "*** Titled Tuesday 3|2 Blitz"]
[Site "Chess.com"]
[Date "2015.11.03"]
[Round "1"]
[White "Matibar"]
[Black "3f32"]
[Result "1-0"]
[WhiteElo "1653"]
[BlackElo "2278"]
[TimeControl "180+2"]
[EndTime "11:08:35 PST"]
[Termination "Matibar won by resignation"]

1. e4 {[%clk 0:02:58.4]} 1... e5 {[%clk 0:03:00.6]} 2. Nf3 {[%clk 0:02:54.8]}
2... Nc6 {[%clk 0:03:01.5]} 3. Bb5 {[%clk 0:02:54.3]} 3... a6 {[%clk 0:03:01.9]}
4. Ba4 {[%clk 0:02:54.5]} 4... Nf6 {[%clk 0:03:02.3]} 5. Qe2 {[%clk 0:02:54.1]}
5... b5 {[%clk 0:03:00.4]} 6. Bb3 {[%clk 0:02:54.7]} 6... Bc5 {[%clk 0:02:59.5]}
7. c3 {[%clk 0:02:54]} 7... O-O {[%clk 0:02:59.5]} 8. O-O {[%clk 0:02:54.3]}
8... d6 {[%clk 0:02:57.2]} 9. d3 {[%clk 0:02:48]} 9... h6 {[%clk 0:02:52.2]} 10.
h3 {[%clk 0:02:48.3]} 10... Bb6 {[%clk 0:02:52.9]} 11. Be3 {[%clk 0:02:40.1]}
11... Bxe3 {[%clk 0:02:46]} 12. Qxe3 {[%clk 0:02:36.6]} 12... Ne7 {[%clk
0:02:45.1]} 13. d4 {[%clk 0:02:35]} 13... Ng6 {[%clk 0:02:45.3]} 14. Rd1 {[%clk
0:02:15.2]} 14... Qe7 {[%clk 0:02:42.2]} 15. dxe5 {[%clk 0:02:04.4]} 15... dxe5
{[%clk 0:02:41.6]} 16. Nbd2 {[%clk 0:02:02.6]} 16... Bb7 {[%clk 0:02:40.7]} 17.
Bc2 {[%clk 0:02:01.1]} 17... Rfd8 {[%clk 0:02:36]} 18. Nb3 {[%clk 0:02:01.9]}
18... Rxd1+ {[%clk 0:02:34]} 19. Rxd1 {[%clk 0:02:02.1]} 19... Rd8 {[%clk
0:02:35.9]} 20. Rxd8+ {[%clk 0:02:02.6]} 20... Qxd8 {[%clk 0:02:37.8]} 21. Nc5
{[%clk 0:02:03.6]} 21... Bc8 {[%clk 0:02:35.9]} 22. Qd2 {[%clk 0:01:58.6]} 22...
Qxd2 {[%clk 0:02:34.9]} 23. Nxd2 {[%clk 0:02:00.5]} 23... Kf8 {[%clk 0:02:33.3]}
24. b4 {[%clk 0:01:58.9]} 24... Ke7 {[%clk 0:02:33.9]} 25. f3 {[%clk 0:01:52.9]}
25... Nf4 {[%clk 0:02:34.7]} 26. Kf2 {[%clk 0:01:50.9]} 26... Ne6 {[%clk
0:02:35.7]} 27. Ndb3 {[%clk 0:01:51.5]} 27... Nxc5 {[%clk 0:02:32]} 28. Nxc5
{[%clk 0:01:52.4]} 28... Nd7 {[%clk 0:02:33.6]} 29. Nd3 {[%clk 0:01:46.2]} 29...
f6 {[%clk 0:02:33.1]} 30. a4 {[%clk 0:01:45.2]} 30... Nb6 {[%clk 0:02:27.9]} 31.
a5 {[%clk 0:01:45.7]} 31... Nc4 {[%clk 0:02:25.8]} 32. Bb3 {[%clk 0:01:42.3]}
32... Nd6 {[%clk 0:02:19.8]} 33. Nc5 {[%clk 0:01:42.8]} 33... Nb7 {[%clk
0:02:16.5]} 34. Nxb7 {[%clk 0:01:26.9]} 34... Bxb7 {[%clk 0:02:18.4]} 35. c4
{[%clk 0:01:28.4]} 35... bxc4 {[%clk 0:02:10.1]} 36. Bxc4 {[%clk 0:01:29]} 36...
Kd6 {[%clk 0:02:11.1]} 37. Ke3 {[%clk 0:01:26.9]} 37... c5 {[%clk 0:02:11.4]}
38. b5 {[%clk 0:01:27.5]} 38... axb5 {[%clk 0:02:13.3]} 39. Bxb5 {[%clk
0:01:28.7]} 39... Bc6 {[%clk 0:02:11.1]} 40. Bc4 {[%clk 0:01:22.8]} 40... Bd7
{[%clk 0:02:07.3]} 41. Kd3 {[%clk 0:01:23.5]} 41... Kc6 {[%clk 0:02:08.3]} 42.
Kc3 {[%clk 0:01:22.7]} 42... Bc8 {[%clk 0:02:06.2]} 43. Kb3 {[%clk 0:01:22.4]}
43... Kc7 {[%clk 0:02:03.3]} 44. Bb5 {[%clk 0:01:19.6]} 44... Be6+ {[%clk
0:02:03.8]} 45. Kc3 {[%clk 0:01:20.3]} 45... Bf7 {[%clk 0:02:02.4]} 46. g3
{[%clk 0:01:18.7]} 46... Be6 {[%clk 0:02:01.6]} 47. h4 {[%clk 0:01:19.4]} 47...
Bh3 {[%clk 0:02:02]} 48. f4 {[%clk 0:01:19.7]} 48... Bg2 {[%clk 0:02:00.8]} 49.
Bd3 {[%clk 0:01:19.4]} 49... Kc6 {[%clk 0:01:59.1]} 50. Kc4 {[%clk 0:01:16.6]}
50... Bh3 {[%clk 0:01:59.2]} 51. f5 {[%clk 0:01:16.1]} 51... Bg2 {[%clk
0:01:56.1]} 52. a6 {[%clk 0:01:16.5]} 52... Kb6 {[%clk 0:01:56.9]} 53. Kd5
{[%clk 0:01:17.1]} 53... Bf3 {[%clk 0:01:51.9]} 54. Ke6 {[%clk 0:01:15.4]} 54...
c4 {[%clk 0:01:41.8]} 55. Bxc4 {[%clk 0:01:14.7]} 55... Bxe4 {[%clk 0:01:42.8]}
56. Kf7 {[%clk 0:01:06.9]} 56... Bxf5 {[%clk 0:01:39.7]} 57. Kxg7 {[%clk
0:01:08]} 57... e4 {[%clk 0:01:33.8]} 58. Kxh6 {[%clk 0:01:05.1]} 58... Bg4
{[%clk 0:01:32.5]} 59. Kg6 {[%clk 0:01:05.7]} 59... f5 {[%clk 0:01:30.9]} 60. h5
{[%clk 0:01:03.8]} 60... e3 {[%clk 0:01:28.2]} 61. h6 {[%clk 0:01:04.2]} 61...
Kc5 {[%clk 0:01:28.4]} 62. a7 {[%clk 0:00:58.7]} 62... Kxc4 {[%clk 0:01:29.8]}
63. a8=Q {[%clk 0:00:59.7]} 63... e2 {[%clk 0:01:31.7]} 64. Qh1 {[%clk
0:01:00.1]} 64... Kd3 {[%clk 0:01:32.1]} 65. Qe1 {[%clk 0:01:00.5]} 65... Ke3
{[%clk 0:01:33]} 66. h7 {[%clk 0:01:01.3]} 1-0

[Event "*** Titled Tuesday 3|2 Blitz"]
[Site "Chess.com"]
[Date "2015.11.03"]
[Round "1"]
[White "Frolyanov_D"]
[Black "gmjlh"]
[Result "0-1"]
[WhiteElo "2224"]
[BlackElo "2643"]
[TimeControl "180+2"]
[EndTime "11:09:08 PST"]
[Termination "gmjlh won by resignation"]

1. d4 {[%clk 0:03:00.4]} 1... Nf6 {[%clk 0:02:56.2]} 2. c4 {[%clk 0:03:00.8]}
2... g6 {[%clk 0:02:56.2]} 3. Nf3 {[%clk 0:03:00.6]} 3... Bg7 {[%clk 0:02:56.7]}
4. g3 {[%clk 0:03:01.1]} 4... c5 {[%clk 0:02:54.8]} 5. Bg2 {[%clk 0:02:56.1]}
5... Nc6 {[%clk 0:02:53.1]} 6. d5 {[%clk 0:02:55.7]} 6... Na5 {[%clk 0:02:53.6]}
7. Nbd2 {[%clk 0:02:52.8]} 7... O-O {[%clk 0:02:50.9]} 8. O-O {[%clk 0:02:52.4]}
8... d6 {[%clk 0:02:51.3]} 9. e4 {[%clk 0:02:50.3]} 9... e5 {[%clk 0:02:50.7]}
10. b3 {[%clk 0:02:44.4]} 10... a6 {[%clk 0:02:48.3]} 11. a4 {[%clk 0:02:41.8]}
11... Bd7 {[%clk 0:02:44.4]} 12. Bb2 {[%clk 0:02:38.5]} 12... b5 {[%clk
0:02:44.1]} 13. axb5 {[%clk 0:02:29.2]} 13... axb5 {[%clk 0:02:44.5]} 14. Bc3
{[%clk 0:02:30]} 14... b4 {[%clk 0:02:22.9]} 15. Bb2 {[%clk 0:02:29.7]} 15...
Ng4 {[%clk 0:02:22.6]} 16. h3 {[%clk 0:02:18.9]} 16... Nh6 {[%clk 0:02:23.4]}
17. Ne1 {[%clk 0:02:11]} 17... f5 {[%clk 0:02:22.9]} 18. Nd3 {[%clk 0:02:10.6]}
18... Nb7 {[%clk 0:01:36.6]} 19. Rxa8 {[%clk 0:02:07.1]} 19... Qxa8 {[%clk
0:01:37.4]} 20. Qc2 {[%clk 0:02:07.8]} 20... Qc8 {[%clk 0:01:31.8]} 21. Kh2
{[%clk 0:02:06]} 21... Nf7 {[%clk 0:01:20.3]} 22. f4 {[%clk 0:02:03.2]} 22...
Re8 {[%clk 0:01:17.9]} 23. fxe5 {[%clk 0:01:59.8]} 23... dxe5 {[%clk 0:01:18.8]}
24. exf5 {[%clk 0:01:55.1]} 24... gxf5 {[%clk 0:01:19.8]} 25. Nf2 {[%clk
0:01:44.5]} 25... Nfd6 {[%clk 0:01:13.6]} 26. Nf3 {[%clk 0:01:40.2]} 26... Qd8
{[%clk 0:01:14.2]} 27. Re1 {[%clk 0:01:18.2]} 27... e4 {[%clk 0:01:14.9]} 28.
Ng1 {[%clk 0:00:53.5]} 28... Qe7 {[%clk 0:00:55.6]} 29. Ne2 {[%clk 0:00:47.2]}
29... Bxb2 {[%clk 0:00:52.6]} 30. Qxb2 {[%clk 0:00:47.3]} 30... Qg7 {[%clk
0:00:54.5]} 31. Qc2 {[%clk 0:00:37.8]} 31... Ra8 {[%clk 0:00:26.5]} 32. Nf4
{[%clk 0:00:36.7]} 32... Ra3 {[%clk 0:00:27.8]} 33. Nd1 {[%clk 0:00:35.1]} 33...
Na5 {[%clk 0:00:25.9]} 34. Re3 {[%clk 0:00:25.2]} 34... Qd4 {[%clk 0:00:20.4]}
35. Qe2 {[%clk 0:00:18.7]} 35... Rxb3 {[%clk 0:00:18.6]} 36. Rxb3 {[%clk
0:00:18.3]} 36... Nxb3 {[%clk 0:00:20.5]} 37. Qh5 {[%clk 0:00:19.1]} 37... Qf6
{[%clk 0:00:21.9]} 38. Ne3 {[%clk 0:00:17.9]} 38... Nd4 {[%clk 0:00:22.9]} 39.
Qd1 {[%clk 0:00:15.2]} 39... b3 {[%clk 0:00:24]} 40. Nh5 {[%clk 0:00:12.5]}
40... Qe5 {[%clk 0:00:24.7]} 41. Nf4 {[%clk 0:00:12.8]} 41... b2 {[%clk
0:00:21.6]} 42. Qb1 {[%clk 0:00:13.7]} 42... Nf3+ {[%clk 0:00:20]} 43. Bxf3
{[%clk 0:00:07.1]} 43... exf3 {[%clk 0:00:21.9]} 44. Nd1 {[%clk 0:00:08]} 44...
Nxc4 {[%clk 0:00:22.6]} 0-1